fUSD/lending_fUSD_20240802
["ID","MTS","AMOUNT","RATE_DAILY","PERIOD"]
[333916449,1722628248329,-500.0,0.00016438,2]
[333916450,1722628248340,-1715.66,0.00016438,2]
[333916451,1722628248351,-896.45,0.00016438,2]
[333916452,1722628248362,-500.0,0.00016438,2]
[333916453,1722628248373,-500.0,0.00016438,2]
[333916454,1722628248383,-500.0,0.00016438,2]
[333916455,1722628248395,-1484.89,0.00016438,2]
[333916456,1722628248406,-776.9,0.00016438,2]
[333916457,1722628248418,-500.0,0.00016438,2]
[333916458,1722628248429,-500.0,0.00016438,2]
[333916459,1722628248440,-2118.23,0.00016438,2]
[333916460,1722628248451,-500.0,0.00016438,2]
[333916461,1722628249421,-826.7,0.00016438,2]
[333916462,1722628249672,-2378.37,0.00016438,2]
[333916463,1722628249698,-752.0,0.00016438,2]
[333916464,1722628249721,-185.90588178,0.00016438,2]
[333916465,1722628249736,-2227.96,0.00016438,2]
[333916466,1722628249745,-500.0,0.00016438,2]
[333916467,1722628249754,-1094.05,0.00016438,2]
[333916468,1722628249764,-500.0,0.00016438,2]
[333916469,1722628249774,-994.27,0.00016438,2]
[333916470,1722628249784,-500.0,0.00016438,2]
[333916471,1722628249793,-2136.24,0.00016438,2]
[333916472,1722628249802,-2143.97,0.00016438,2]
[333916473,1722628249812,-500.0,0.00016438,2]
[333916474,1722628249821,-500.0,0.00016438,2]
[333916475,1722628249831,-2922.38,0.00016438,2]
[333916476,1722628249841,-500.0,0.00016438,2]
[333916477,1722628249853,-500.0,0.00016438,2]
[333916478,1722628249863,-1052.71,0.00016438,2]
[333916479,1722628249875,-2683.04,0.00016438,2]
[333916480,1722628249886,-2991.78,0.00016438,2]
[333916481,1722628249896,-500.0,0.00016438,2]
[333916482,1722628249906,-500.0,0.00016438,2]
[333916483,1722628249918,-1402.23,0.00016438,2]
[333916484,1722628249928,-500.0,0.00016438,2]
[333916485,1722628249938,-2871.81,0.00016438,2]
[333916486,1722628249947,-1318.39,0.00016438,2]
[333916487,1722628249957,-673.15,0.00016438,2]
[333916488,1722628249967,-500.0,0.00016438,2]
[333916489,1722628249977,-678.26,0.00016438,2]
[333916490,1722628249986,-1075.55,0.00016438,2]
[333916491,1722628249997,-500.0,0.00016438,2]
[333916492,1722628250007,-627.58,0.00016438,2]
[333916493,1722628250016,-2080.68,0.00016438,2]
[333916494,1722628250027,-802.82,0.00016438,2]
[333916495,1722628250037,-588.27696901,0.00016438,2]
[333916496,1722628250117,-2057.41303099,0.00016438,2]
[333916497,1722628250128,-505.81,0.00016438,2]
[333916498,1722628250138,-500.0,0.00016438,2]
[333916499,1722628250147,-658.75,0.00016438,2]
[333916500,1722628250158,-500.0,0.00016438,2]
[333916501,1722628250170,-2831.52,0.00016438,2]
[333916502,1722628250179,-500.0,0.00016438,2]
[333916503,1722628250188,-500.0,0.00016438,2]
[333916504,1722628250198,-1051.41,0.00016438,2]
[333916505,1722628250207,-500.0,0.00016438,2]
[333916506,1722628250217,-500.0,0.00016438,2]
[333916507,1722628250227,-500.0,0.00016438,2]
[333916508,1722628250237,-500.0,0.00016438,2]
[333916509,1722628250246,-500.0,0.00016438,2]
[333916510,1722628250256,-2121.18,0.00016438,2]
[333916511,1722628250265,-1502.48,0.00016438,2]
[333916512,1722628250275,-500.0,0.00016438,2]
[333916513,1722628250284,-500.0,0.00016438,2]
[333916514,1722628250294,-713.99,0.00016438,2]
[333916515,1722628250303,-809.82,0.00016438,2]
[333916516,1722628250313,-500.0,0.00016438,2]
[333916517,1722628250322,-775.73,0.00016438,2]
[333916518,1722628250331,-500.0,0.00016438,2]
[333916519,1722628250341,-637.17,0.00016438,2]
[333916520,1722628250350,-500.0,0.00016438,2]
[333916521,1722628250360,-4014.93,0.00016438,2]
[333916522,1722628250370,-1361.17,0.00016438,2]
[333916523,1722628250379,-500.0,0.00016438,2]
[333916524,1722628250389,-2731.81,0.00016438,2]
[333916525,1722628250399,-1278.71,0.00016438,2]
[333916526,1722628250408,-4675.68,0.00016438,2]
[333916527,1722628250421,-701.59,0.00016438,2]
[333916528,1722628250436,-1370.69,0.00016438,2]
[333916529,1722628250447,-1984.1,0.00016438,2]
[333916530,1722628250456,-500.0,0.00016438,2]
[333916531,1722628250466,-2126.47,0.00016438,2]
[333916532,1722628250476,-500.0,0.00016438,2]
[333916533,1722628250486,-519.42,0.00016438,2]
[333916534,1722628250495,-500.0,0.00016438,2]
[333916535,1722628250507,-500.0,0.00016438,2]
[333916536,1722628250517,-1909.17,0.00016438,2]
[333916537,1722628250526,-500.0,0.00016438,2]
[333916538,1722628250536,-405.66647217,0.00016438,2]
[333916539,1722628250550,-94.33352783,0.00016438,2]
[333916540,1722628250559,-284.37017317,0.00016438,2]
[333916541,1722628250571,-4143.31,0.00016438,2]
[333916542,1722628250585,-1032.36982683,0.00016438,2]
[333916543,1722628250594,-500.0,0.00016438,2]
[333916544,1722628250604,-500.0,0.00016438,2]
[333916545,1722628250613,-88.09064422,0.00016438,2]
[333916546,1722628250762,-633.56217276,0.00016438,2]
[333916547,1722628250775,-643.65718302,0.00016438,2]
[333916548,1722628250784,-284.11281698,0.00016438,2]
[333916549,1722628253072,-282.10718302,0.00016438,2]
[333916550,1722628253081,-63.19536566,0.00016438,2]
[333916551,1722628253093,-293.80853246,0.00016438,2]
[333916552,1722628253104,-142.99610188,0.00016438,2]
[333916553,1722628253114,-500.0,0.00016438,2]
[333916554,1722628253123,-1048.81,0.00016438,2]
[333916555,1722628253132,-36.73159959,0.00016438,2]
[333916556,1722628253143,-463.26840041,0.00016438,2]
[333916557,1722628253152,-500.0,0.00016438,2]
[333916558,1722628253161,-65.04178889,0.00016438,2]
[333916559,1722628253174,-434.95821111,0.00016438,2]
[333916560,1722628253183,-500.0,0.00016438,2]
[333916561,1722628253193,-2155.92,0.00016438,2]
[333916562,1722628253202,-918.63687465,0.00016438,2]
[333916563,1722628253302,-249.79312535,0.00016438,2]
[333916564,1722628253312,-2029.56,0.00016438,2]
[333916565,1722628253321,-500.0,0.00016438,2]
[333916566,1722628253330,-500.0,0.00016438,2]
[333916567,1722628253340,-500.0,0.00016438,2]
[333916568,1722628253349,-500.0,0.00016438,2]
[333916569,1722628253359,-500.0,0.00016438,2]
[333916570,1722628253369,-500.0,0.00016438,2]
[333916571,1722628253378,-500.0,0.00016438,2]
[333916572,1722628253389,-318.47878474,0.00016438,2]
[333916573,1722628253401,-930.552031,0.00016438,2]
[333916574,1722628253413,-239.51918426,0.00016438,2]
[333916575,1722628253424,-203.93145634,0.00016438,2]
[333916576,1722628253468,-296.06854366,0.00016438,2]
[333916577,1722628253479,-1115.65,0.00016438,2]
[333916578,1722628253488,-1403.18639068,0.00016438,2]
[333916579,1722628253547,-689.81360932,0.00016438,2]
[333916580,1722628253556,-500.0,0.00016438,2]
[333916581,1722628253565,-500.0,0.00016438,2]
[333916582,1722628253575,-500.0,0.00016438,2]
[333916583,1722628253585,-1140.16,0.00016438,2]
[333916584,1722628253595,-500.0,0.00016438,2]
[333916585,1722628253604,-500.0,0.00016438,2]
[333916586,1722628253615,-664.25,0.00016438,2]
[333916587,1722628253624,-1152.36,0.00016438,2]
[333916588,1722628253634,-500.0,0.00016438,2]
[333916589,1722628253644,-1628.74,0.00016438,2]
[333916590,1722628253653,-500.0,0.00016438,2]
[333916591,1722628253663,-585.66403891,0.00016438,2]
[333916592,1722628255005,-526.05596109,0.00016438,2]
[333916593,1722628255015,-100.80888336,0.00016438,2]
[333916594,1722628255027,-399.19111664,0.00016438,2]
[333916595,1722628255036,-2905.27,0.00016438,2]
[333916596,1722628255045,-500.0,0.00016438,2]
[333916597,1722628255055,-1633.96,0.00016438,2]
[333916598,1722628255064,-767.05,0.00016438,2]
[333916599,1722628255073,-1124.01,0.00016438,2]
[333916600,1722628255083,-597.95,0.00016438,2]
[333916601,1722628255092,-4236.62,0.00016438,2]
[333916602,1722628255102,-1367.89347,0.00016438,2]
[333916603,1722628255111,-500.0,0.00016438,2]
[333916604,1722628255122,-500.0,0.00016438,2]
[333916605,1722628255131,-1428.84,0.00016438,2]
[333916606,1722628255141,-500.0,0.00016438,2]
[333916607,1722628255150,-2465.69,0.00016438,2]
[333916608,1722628255160,-500.0,0.00016438,2]
[333916609,1722628255169,-630.52,0.00016438,2]
[333916610,1722628255179,-1113.61,0.00016438,2]
[333916611,1722628255187,-500.0,0.00016438,2]
[333916612,1722628255197,-679.52,0.00016438,2]
[333916613,1722628255206,-4101.65,0.00016438,2]
[333916614,1722628255216,-500.0,0.00016438,2]
[333916615,1722628255225,-500.0,0.00016438,2]
[333916616,1722628255234,-1547.28,0.00016438,2]
[333916617,1722628255244,-787.86,0.00016438,2]
[333916618,1722628255253,-500.0,0.00016438,2]
[333916619,1722628255262,-923.14,0.00016438,2]
[333916620,1722628255271,-500.0,0.00016438,2]
[333916621,1722628255280,-500.0,0.00016438,2]
[333916622,1722628255287,-500.0,0.00016438,2]
[333916623,1722628255296,-500.0,0.00016438,2]
[333916624,1722628255306,-2811.07,0.00016438,2]
[333916625,1722628255315,-528.47,0.00016438,2]
[333916626,1722628255325,-500.0,0.00016438,2]
[333916627,1722628255334,-500.0,0.00016438,2]
[333916628,1722628255344,-1184.39,0.00016438,2]
[333916629,1722628255353,-2426.71,0.00016438,2]
[333916630,1722628255363,-21737.93,0.00016438,2]
[333916631,1722628255372,-500.0,0.00016438,2]
[333916632,1722628255382,-4374.19,0.00016438,2]
[333916633,1722628255391,-500.0,0.00016438,2]
[333916634,1722628255401,-608.97,0.00016438,2]
[333916635,1722628255410,-500.0,0.00016438,2]
[333916636,1722628255419,-616.8,0.00016438,2]
[333916637,1722628255429,-500.0,0.00016438,2]
[333916638,1722628255438,-500.0,0.00016438,2]
[333916639,1722628255449,-500.0,0.00016438,2]
[333916640,1722628255458,-1082.88,0.00016438,2]
[333916641,1722628255467,-500.0,0.00016438,2]
[333916642,1722628255477,-500.0,0.00016438,2]
[333916643,1722628255486,-180.11152777,0.00016438,2]
[333916644,1722628255496,-650.4,0.00016438,2]
[333916645,1722628255506,-2049.14,0.00016438,2]
[333916646,1722628255517,-500.0,0.00016438,2]
[333916647,1722628255527,-6357.95,0.00016438,2]
[333916648,1722628255536,-1521.47,0.00016438,2]
[333916649,1722628255545,-500.0,0.00016438,2]
[333916650,1722628255554,-500.0,0.00016438,2]
[333916651,1722628255564,-3593.57,0.00016438,2]
[333916652,1722628255574,-1195.82,0.00016438,2]
[333916653,1722628255584,-729.39,0.00016438,2]
[333916654,1722628255594,-500.0,0.00016438,2]
[333916655,1722628255604,-162.29168649,0.00016438,2]
[333916656,1722628255613,-1091.17,0.00016438,2]
[333916657,1722628255623,-793.14,0.00016438,2]
[333916658,1722628255632,-500.0,0.00016438,2]
[333916659,1722628255642,-500.0,0.00016438,2]
[333916660,1722628255651,-500.0,0.00016438,2]
[333916661,1722628255661,-1394.0,0.00016438,2]
[333916662,1722628255674,-935.02,0.00016438,2]
[333916663,1722628255683,-1466.3,0.00016438,2]
[333916664,1722628255692,-1666.7,0.00016438,2]
[333916665,1722628255701,-575.11,0.00016438,2]
[333916666,1722628255714,-3235.5,0.00016438,2]
[333916667,1722628255723,-500.0,0.00016438,2]
[333916668,1722628255732,-500.0,0.00016438,2]
[333916669,1722628255743,-500.0,0.00016438,2]
[333916670,1722628255752,-659.0,0.00016438,2]
[333916671,1722628255761,-500.0,0.00016438,2]
[333916672,1722628255771,-1066.3,0.00016438,2]
[333916673,1722628255780,-643.96564992,0.00016438,2]
[333916674,1722628255789,-1602.05,0.00016438,2]
[333916675,1722628255799,-613.91,0.00016438,2]
[333916676,1722628255808,-9861.28,0.00016438,2]
[333916677,1722628255817,-2058.63,0.00016438,2]
[333916678,1722628255826,-500.0,0.00016438,2]
[333916679,1722628255835,-582.33,0.00016438,2]
[333916680,1722628255845,-518.44,0.00016438,2]
[333916681,1722628255854,-500.0,0.00016438,2]
[333916682,1722628255864,-500.0,0.00016438,2]
[333916683,1722628255873,-987.38554188,0.00016438,2]
[333916684,1722628255888,-521.20184298,0.00016438,2]
[333916685,1722628255900,-1322.53261514,0.00016438,2]
[333916686,1722628255910,-1261.51,0.00016438,2]
[333916687,1722628255919,-500.0,0.00016438,2]
[333916688,1722628255928,-500.0,0.00016438,2]
[333916689,1722628255938,-211.60214751,0.00016438,2]
[333916690,1722628255950,-781.91785249,0.00016438,2]
[333916691,1722628255959,-500.0,0.00016438,2]
[333916692,1722628255968,-2346.36,0.00016438,2]
[333916693,1722628255977,-500.0,0.00016438,2]
[333916694,1722628255988,-500.0,0.00016438,2]
[333916695,1722628255997,-500.0,0.00016438,2]
[333916696,1722628256006,-64611.4,0.00016438,2]
[333916697,1722628256015,-1094.34,0.00016438,2]
[333916698,1722628256024,-500.0,0.00016438,2]
[333916699,1722628256034,-4618.02,0.00016438,2]
[333916700,1722628256043,-579.76,0.00016438,2]
[333916701,1722628256053,-500.0,0.00016438,2]
[333916702,1722628256062,-500.0,0.00016438,2]
[333916703,1722628256072,-579.17,0.00016438,2]
[333916704,1722628256081,-1953.94,0.00016438,2]
[333916705,1722628256091,-500.0,0.00016438,2]
[333916706,1722628256100,-500.0,0.00016438,2]
[333916707,1722628256109,-500.0,0.00016438,2]
[333916708,1722628256119,-655.57,0.00016438,2]
[333916709,1722628256128,-592.65,0.00016438,2]
[333916710,1722628256137,-856.25,0.00016438,2]
[333916711,1722628256146,-500.0,0.00016438,2]
[333916712,1722628256155,-500.0,0.00016438,2]
[333916713,1722628256165,-749.55,0.00016438,2]
[333916714,1722628256174,-1176.56,0.00016438,2]
[333916715,1722628256185,-11728.96434505,0.00016438,2]
[333916716,1722628256202,-947.76827511,0.00013066,2]
[333916717,1722628256212,-3411.16687384,0.00016438,2]
[333916718,1722628256224,-520.38152683,0.00016438,2]
[333916719,1722628256234,-821.075,0.00016438,2]
[333916720,1722628256249,-292.84,0.00016438,2]
[333916723,1722628406159,-886.49,0.000131,2]
[333917003,1722629432162,-550.0,0.00012,2]
[333917004,1722629432171,-881.96,0.00012724,2]
[333917005,1722629432183,-1939.8065,0.000131,2]
[333917006,1722629432198,-2161.9376239,0.000131,2]
[333917007,1722629432208,-227.58642964,0.000131,2]
[333917008,1722629432217,-6285.20192522,0.000131,2]
[333917009,1722629432229,-401.9262313,0.000131,2]
[333917010,1722629432249,-3039.51173614,0.000131,2]
[333917011,1722629432259,-881.78372634,0.000131,2]
[333917012,1722629432270,-0.91229624,0.000131,2]
[333917013,1722629432280,-1597.37104682,0.000131,2]
[333917014,1722629432290,-447.77665694,0.000131,2]
[333917015,1722629432301,-602.00835552,0.000131,2]
[333917016,1722629432311,-263.75029344,0.000131,2]
[333917017,1722629432321,-2838.6219248,0.00013859,2]
[333917018,1722629432330,-489.57,0.00013973,2]
[333917019,1722629432339,-955.81065426,0.00013989,2]
[333917020,1722629432355,-1677.072886,0.00013989,2]
[333917021,1722629432365,-1638.82678995,0.00013996,2]
[333917022,1722629432374,-18608.10401014,0.00014,2]
[333917023,1722629432384,-600.0,0.00014,2]
[333917024,1722629432393,-499.99,0.00014261,2]
[333917025,1722629432403,-624.79,0.00014425,2]
[333917026,1722629432412,-168.62,0.00014466,2]
[333917027,1722629432421,-346.59,0.0001449,2]
[333917028,1722629432433,-2000.0,0.00014523,2]
[333917029,1722629432445,-250.0,0.00014531,2]
[333917030,1722629432454,-1678.55,0.00014538,2]
[333917031,1722629432464,-1000.0,0.0001461,2]
[333917032,1722629432473,-4296.03,0.00014726,2]
[333917033,1722629432483,-170.33,0.00014805,2]
[333917034,1722629432492,-947.76827511,0.00014899,2]
[333917035,1722629432501,-881.96,0.00014988,2]
[333917036,1722629432510,-1147.51503613,0.00015,7]
[333917037,1722629432519,-647.0,0.00015,2]
[333917038,1722629432528,-966.82,0.0001513,2]
[333917047,1722629432690,-160.52,0.00015585,2]
[333917048,1722629432702,-2257.6792215,0.00016,2]
[333917049,1722629432711,-2151.4055,0.00016011,2]
[333917050,1722629432721,-38813.0,0.00016111,2]
[333917051,1722629432730,-1226.3264,0.00016174,2]
[333917052,1722629432739,-259.6348,0.00016228,2]
[333917053,1722629432749,-1000.0,0.00016234,2]
[333917054,1722629432758,-1128.1478,0.00016234,2]
[333917055,1722629432767,-222.59619378,0.00016238,2]
[333917056,1722629432777,-2044.97102758,0.00016238,2]
[333917057,1722629432786,-490.8273279,0.00016238,2]
[333917058,1722629432796,-222.59619376,0.00016263,2]
[333917059,1722629432805,-222.59619376,0.00016288,2]
[333917060,1722629432815,-222.59619376,0.00016313,2]
[333917061,1722629432824,-662.3303,0.00016328,2]
[333917062,1722629432833,-1871.5084,0.00016328,2]
[333917063,1722629432842,-2000.0,0.00016328,2]
[333917064,1722629432852,-7500.0,0.00016331,2]
[333917065,1722629432862,-25001.29745062,0.00016334,2]
[333917066,1722629432877,-935.99632994,0.00016334,2]
[333917067,1722629432888,-595.5625,0.00016334,2]
[333917068,1722629432913,-6586.58,0.00016334,2]
[333917069,1722629432925,-472.07725986,0.00016334,2]
[333917070,1722629432938,-3727.30427163,0.00016334,2]
[333917071,1722629432949,-1121.66411705,0.00016334,2]
[333917072,1722629432962,-819.28,0.00016334,2]
[333917073,1722629432973,-1414.36815207,0.00016334,2]
[333917074,1722629432984,-707.07731665,0.00016334,2]
[333917075,1722629432995,-629.99914214,0.00016334,2]
[333917076,1722629433007,-6923.09906727,0.00016334,2]
[333917077,1722629433018,-371.6925449,0.00016334,2]
[333917078,1722629433045,-337.835,0.00016334,2]
[333917079,1722629433058,-3295.18404,0.00016334,2]
[333917080,1722629433070,-13517.25894804,0.00016334,2]
[333917081,1722629433102,-9064.59300002,0.00016334,2]
[333917082,1722629433113,-589.589,0.00016334,2]
[333917083,1722629433124,-258.714157,0.00016334,2]
[333917084,1722629433152,-3492.35088058,0.00016334,2]
[333917085,1722629433163,-1106.10866471,0.00016334,2]
[333917086,1722629433174,-1331.901128,0.00016334,2]
[333917087,1722629433187,-3423.6,0.00016334,2]
[333917088,1722629433199,-367.75532206,0.00016334,2]
[333917089,1722629433210,-339.349998,0.00016334,2]
[333917090,1722629433223,-378.5446,0.00016334,2]
[333917091,1722629433234,-478.1956183,0.00016334,2]
[333917096,1722629438300,-2388.0077318,0.00016334,2]
[333917102,1722629438730,-7440.2661436,0.00016334,2]
[333917104,1722629438745,-5397.04425482,0.00016334,2]
[333917107,1722629438761,-904.56575392,0.00016334,2]
[333917109,1722629438775,-2637.06102234,0.00016334,2]
[333917113,1722629438805,-2962.420924,0.00016334,2]
[333917116,1722629438819,-65711.9951142,0.00016334,2]
[333917118,1722629438833,-300.45999998,0.00016334,2]
[333917120,1722629438847,-1275.15327242,0.00016334,2]
[333917146,1722629441655,-56196.50072797,0.00016334,2]
[333917147,1722629441669,-12499.54654611,0.00016334,2]
[333917148,1722629441679,-167.36525563,0.00016338,2]
[333917149,1722629441689,-222.59619376,0.00016338,2]
[333917150,1722629441698,-688.44312252,0.00016338,2]
[333917151,1722629441708,-240.98971489,0.00016338,2]
[333917152,1722629441718,-1000.0,0.00016338,2]
[333917153,1722629441727,-697.5441,0.00016338,2]
[333917154,1722629441737,-86837.61615382,0.00016338,2]
[333917155,1722629441750,-13162.38384618,0.00016338,2]
[333917156,1722629441760,-500.0,0.00016338,2]
[333917157,1722629441769,-182.7281,0.00016338,2]
[333917158,1722629441779,-8962.8652,0.00016338,2]
[333917159,1722629441789,-3991.18446678,0.00016338,2]
[333917160,1722629441799,-150.0,0.00016356,2]
[333917161,1722629441808,-425.37,0.00016356,2]
[333917162,1722629441818,-1500.0,0.0001641,2]
[333917163,1722629441828,-150.0,0.00016413,2]
[333917164,1722629441837,-150.0,0.00016416,2]
[333917165,1722629441846,-500.0,0.00016417,2]
[333917166,1722629441856,-150.0,0.00016418,2]
[333917167,1722629441865,-150.0,0.0001642,2]
[333917168,1722629441878,-153.74,0.00016421,2]
[333917169,1722629441888,-150.0,0.00016421,2]
[333917170,1722629441897,-150.0,0.00016422,2]
[333917171,1722629441906,-150.0,0.00016422,2]
[333917172,1722629441916,-2044.9710275,0.00016423,2]
[333917173,1722629441926,-490.82732784,0.00016423,2]
[333917174,1722629441936,-150.0,0.00016428,2]
[333917175,1722629441945,-153.74,0.00016428,2]
[333917176,1722629441955,-150.0,0.0001643,2]
[333917177,1722629441966,-3408.2871139,0.00016431,2]
[333917178,1722629441975,-862.32654118,0.00016431,2]
[333917179,1722629441985,-1542.4913068,0.00016431,2]
[333917180,1722629441994,-150.0,0.00016433,2]
[333917181,1722629442003,-150.0,0.00016433,2]
[333917182,1722629442012,-27072.12803007,0.00016433,2]
[333917183,1722629442027,-24549.80075471,0.00016433,2]
[333917184,1722629442081,-7871.83266382,0.00016433,2]
[333917185,1722629442108,-13608.2,0.00016433,2]
[333917186,1722629442121,-1259.34265486,0.00016433,2]
[333917187,1722629442135,-8724.45713592,0.00016433,2]
[333917188,1722629442147,-1457.06500002,0.00016433,2]
[333917189,1722629442166,-52483.1261811,0.00016433,2]
[333917190,1722629442176,-10549.2592117,0.00016433,2]
[333917191,1722629442186,-31420.1160714,0.00016433,2]
[333917192,1722629442196,-1170.49202634,0.00016435,2]
[333917193,1722629442205,-1000.0,0.00016436,2]
[333917194,1722629442215,-153.58758173,0.00016437,2]
[333917195,1722629442224,-198384.97577084,0.00016438,7]
[333917196,1722629442233,-500.0,0.00016438,2]
[333917197,1722629442242,-500.0,0.00016438,2]
[333917198,1722629442251,-500.0,0.00016438,2]
[333917199,1722629442261,-1000.0,0.00016438,2]
[333917200,1722629442270,-155.0,0.00016438,2]
[333917201,1722629442280,-500.0,0.00016438,2]
[333917202,1722629442289,-552.44678633,0.00016438,50]
[333917203,1722629442299,-22078.99409457,0.00016438,2]
[333917204,1722629442309,-4268.70526342,0.00016438,15]
[333917205,1722629442318,-500.0,0.00016438,2]
[333917206,1722629442327,-500.0,0.00016438,2]
[333917207,1722629442337,-537.01570494,0.00016438,2]
[333917208,1722629442346,-500.0,0.00016438,2]
[333917209,1722629442356,-300.0,0.00016438,2]
[333917210,1722629442365,-515.75968086,0.00016438,2]
[333917211,1722629442375,-562.33479854,0.00016438,2]
[333917212,1722629442385,-500.0,0.00016438,2]
[333917213,1722629442395,-500.0,0.00016438,2]
[333917214,1722629442405,-2000.0,0.00016438,2]
[333917215,1722629442414,-500.0,0.00016438,2]
[333917216,1722629442424,-200.0,0.00016438,2]
[333917217,1722629442434,-723.9,0.00016438,2]
[333917218,1722629442444,-500.0,0.00016438,2]
[333917219,1722629442454,-759.47,0.00016438,2]
[333917220,1722629442464,-500.0,0.00016438,2]
[333917221,1722629442473,-500.0,0.00016438,2]
[333917222,1722629442482,-2201.45,0.00016438,2]
[333917223,1722629442492,-1766.3,0.00016438,2]
[333917224,1722629442502,-500.0,0.00016438,2]
[333917225,1722629442511,-593.55,0.00016438,2]
[333917226,1722629442520,-500.0,0.00016438,2]
[333917227,1722629442529,-572.73,0.00016438,2]
[333917228,1722629442539,-500.0,0.00016438,2]
[333917229,1722629442548,-500.0,0.00016438,2]
[333917230,1722629442558,-500.0,0.00016438,2]
[333917231,1722629442568,-500.0,0.00016438,2]
[333917232,1722629442577,-282.7165502,0.00016438,2]
[333917233,1722629442586,-560.09,0.00016438,2]
[333917234,1722629442595,-500.0,0.00016438,2]
[333917235,1722629442605,-500.0,0.00016438,2]
[333917236,1722629442614,-500.0,0.00016438,2]
[333917237,1722629442623,-1899.79,0.00016438,2]
[333917238,1722629442633,-927.92,0.00016438,2]
[333917239,1722629442642,-500.0,0.00016438,2]
[333917240,1722629442651,-500.0,0.00016438,2]
[333917241,1722629442661,-500.0,0.00016438,2]
[333917242,1722629442670,-500.0,0.00016438,2]
[333917243,1722629442680,-893.83,0.00016438,2]
[333917244,1722629442689,-1520.75,0.00016438,2]
[333917245,1722629442699,-752.42,0.00016438,2]
[333917246,1722629442708,-500.0,0.00016438,2]
[333917247,1722629442718,-500.0,0.00016438,2]
[333917248,1722629442727,-500.0,0.00016438,2]
[333917249,1722629442737,-541.7,0.00016438,2]
[333917250,1722629442746,-500.0,0.00016438,2]
[333917251,1722629442756,-982.03,0.00016438,2]
[333917252,1722629442765,-500.0,0.00016438,2]
[333917253,1722629442775,-1625.92,0.00016438,2]
[333917254,1722629442784,-564.67,0.00016438,2]
[333917255,1722629442795,-500.0,0.00016438,2]
[333917256,1722629442805,-1354.78,0.00016438,2]
[333917257,1722629442814,-500.0,0.00016438,2]
[333917260,1722629442824,-789.19,0.00016438,2]
[333917263,1722629442833,-500.0,0.00016438,2]
[333917264,1722629442842,-500.0,0.00016438,2]
[333917265,1722629442852,-1129.58,0.00016438,2]
[333917266,1722629442861,-500.0,0.00016438,2]
[333917267,1722629442871,-500.0,0.00016438,2]
[333917269,1722629442882,-500.0,0.00016438,2]
[333917270,1722629442892,-500.0,0.00016438,2]
[333917272,1722629442902,-2032.31,0.00016438,2]
[333917274,1722629442911,-500.0,0.00016438,2]
[333917276,1722629442921,-500.0,0.00016438,2]
[333917278,1722629442931,-792.25,0.00016438,2]
[333917279,1722629442941,-744.53,0.00016438,2]
[333917280,1722629442951,-1709.02,0.00016438,2]
[333917282,1722629442962,-500.0,0.00016438,2]
[333917284,1722629442972,-1514.4,0.00016438,2]
[333917286,1722629442981,-500.0,0.00016438,2]
[333917289,1722629442991,-500.0,0.00016438,2]
[333917290,1722629443001,-500.0,0.00016438,2]
[333917292,1722629443010,-500.0,0.00016438,2]
[333917293,1722629443020,-500.0,0.00016438,2]
[333917294,1722629443030,-257.28797626,0.00016438,2]
[333917295,1722629443039,-500.0,0.00016438,2]
[333917296,1722629443049,-828.77,0.00016438,2]
[333917297,1722629443058,-500.0,0.00016438,2]